Cogmind - Beta 16 @@@ ROGUE MODE // 2025.10.22 @ 22:52:31 Player: Dicaso9 Result: Destroyed by Y-45 Defender with Beam Rifle Performance ------------- Evolutions (1) 500 Regions Visited (3) 600 Robots Destroyed (12) 60 Value Destroyed (284) 284 Prototype IDs (1) 20 Alien Tech Used (0) 0 Bonus (0) 0 TOTAL SCORE: 1464 Bonus ------- None Cogmind --------- Core Integrity 0/400 Matter 233/300 Energy 100/100 System Corruption 0% Temperature Cool (27) Movement Flying (40) Location -9/Storage Parts ------- > --- POWER (1) -------- (None) > --- PROPULSION (3) --- Flight Unit > --- UTILITY (3) ------ Improved Targeting Computer > --- WEAPON (2) ------- Mini Assault Cannon > --- INVENTORY (5) ---- Light Ion Engine Light Ion Engine Autogun Autogun Autogun Peak State ------------ > --- POWER ------------ (None) > --- PROPULSION ------- Flight Unit > --- UTILITY ---------- Improved Targeting Computer > --- WEAPON ----------- Light Assault Rifle Mini Assault Cannon > --- INVENTORY -------- Light Ion Engine Light Ion Engine Autogun Autogun Autogun [Rating: 9] Favorites ----------- Power Light Ion Engine Engine Light Ion Engine Propulsion Light Treads Treads Light Treads Leg Aluminum Leg Flight Unit Flight Unit Utility Small Storage Unit Device Seismic Detector Storage Small Storage Unit Processor Improved Targeting Computer Weapon Light Assault Rifle Energy Gun Medium Laser Ballistic Gun Light Assault Rifle Ballistic Cannon Mini Assault Cannon Launcher Grenade Launcher Build | -11 -10 -9 -9 ------- Run | Yrd Mat Mat Sto Slots Evolved 2 | . . 2 . Power . | . . . . Propulsion 1 | . . 1 . Utility 1 | . . 1 . Weapon . | . . . . Parts Attached 22 | 6 7 1 8 Power 5 | 1 2 . 2 Engine 5 | 1 2 . 2 Core . | . . . . Reactor . | . . . . Propulsion 5 | 2 2 . 1 Treads 2 | 2 . . . Leg 2 | . 2 . . Wheel . | . . . . Hover . | . . . . Flight 1 | . . . 1 Utility 4 | 1 1 1 1 Device 1 | . 1 . . Storage 2 | 1 . 1 . Processor 1 | . . . 1 Hackware . | . . . . Protection . | . . . . Artifact . | . . . . Weapon 8 | 2 2 . 4 Energy Gun 2 | 1 1 . . Energy Cannon . | . . . . Ballistic Gun 4 | 1 . . 3 Ballistic Cannon 1 | . . . 1 Launcher 1 | . 1 . . Special Weapon . | . . . . Impact Weapon . | . . . . Slashing Weapon . | . . . . Piercing Weapon . | . . . . Special Melee Weapon . | . . . . Unidentified Prototypes 1 | . . . 1 Parts Lost 10 | . 6 3 1 Power 3 | . 1 1 1 Propulsion 2 | . 2 . . Utility 1 | . 1 . . Weapon 4 | . 2 2 . Highest Loss Streak 4 | . 4 3 1 To Critical Strikes . | . . . . Average Backups 4 | 3 4 5 4 Power 2 | . 2 4 2 Propulsion . | 1 1 . . Utility . | . . 1 1 Weapon . | . . . . Tool/Special . | . . . . Unused Backups 5 | . . . 5 Power 2 | . . . 2 Propulsion . | . . . . Utility 1 | . . . 1 Weapon 2 | . . . 2 Tool/Special . | . . . . Average Slot Usage (%) 61 | . 77 59 42 Engine 9 | . 12 9 5 Treads 9 | . 19 . . Leg 10 | . 7 22 10 Flight 1 | . . . 4 Storage 9 | . 14 11 3 Processor 2 | . . . 7 Energy Gun 3 | . 7 . . Ballistic Gun 11 | . 12 8 10 Launcher 1 | . 1 8 . Peak Build Rating 9 | 6 7 7 9 Average Rating 5 | 4 5 5 5 On Entrance 3 | . 6 6 3 Avg Prop Armor Cover (%) . | . . . . Naked Turns . | . . . . Heaviest Build 12 | 11 12 12 8 Greatest Support 40 | 40 40 20 20 Greatest Overweight (x) . | . . . . Average Overweight (x) . | . . . . Largest Inventory Capacity 25 | 8 8 25 25 Average Capacity 7 | 7 8 8 5 Most Carried 6 | 6 6 6 6 Average Carried 4 | 3 4 5 4 Final Capacity 8 | 8 8 8 5 Final Carried 6 | 5 5 6 5 Class Distribution -------------------- 100% | Mutant Dominant Class ---------------- Mutant | -10/Materials Mutant | -9/Materials Mutant | -9/Storage Resources | -11 -10 -9 -9 ----------- Run | Yrd Mat Mat Sto Matter Collected 410 | 271 82 . 57 Remotely . | . . . . Salvage Created 401 | 104 240 . 57 Parts 26 | 5 15 . 6 Haulers Intercepted . | . . . . Recyclers Shooed . | . . . . Parts Field Recycled . | . . . . Retrieved Matter . | . . . . Parts Self-Destructed . | . . . . Prevented . | . . . . Parts Restored . | . . . . Kills | -11 -10 -9 -9 ------- Run | Yrd Mat Mat Sto Combat Hostiles Destroyed 9 | . 6 . 3 Melee 1 | . . . 1 Guns 8 | . 6 . 2 Classes Destroyed 5 | 3 1 . 1 Worker 1 | 1 . . . Tunneler 1 | 1 . . . Recycler 1 | 1 . . . Swarmer 3 | . . . 3 Grunt 6 | . 6 . . Best Kill Streak 3 | 1 2 . 3 Combat Bots Only 3 | . 2 . 3 Max Kills in Single Turn 1 | 1 1 . 1 Gunslinging . | . . . . Exploded . | . . . . Melee 1 | . . . 1 Uniques/NPCs Destroyed . | . . . . Combat | -11 -10 -9 -9 -------- Run | Yrd Mat Mat Sto Hostile Shots Fired 156 | . 69 43 44 Missed 37 | . 11 9 17 Hits 119 | . 58 34 27 Projectile 119 | . 58 34 27 Critical Strikes 2 | . . 1 1 Damage Taken 1570 | . 760 507 303 Core 539 | . 137 214 188 Absorbed by Shields . | . . . . Core Remaining (%) 72 | 100 45 . . Volleys Fired 72 | 15 48 3 6 Largest 2 | 2 2 1 1 Hottest 90 | 70 90 30 20 Shots Fired 96 | 30 57 3 6 Gun 93 | 30 57 . 6 Cannon . | . . . . Launcher 3 | . . 3 . Special . | . . . . Kinetic 62 | 15 41 . 6 Thermal 21 | 15 6 . . Explosive 3 | . . 3 . Electromagnetic 10 | . 10 . . Robot Hit Streak 13 | 8 13 2 5 Robot Miss Streak 4 | 4 1 1 1 Penetration Max . | . . . . Secondary Targets 1 | . 1 . . Max Gunslinging Chain 1 | . 1 . . Shots Hit Robots 75 | 20 48 2 5 Core Hits 31 | 5 19 2 5 Critical Kills . | . . . . Critical Parts Destroyed 2 | . 2 . . Critical Strikes 4 | 2 2 . . Burn 2 | 2 . . . Destroy 2 | . 2 . . Melee Attacks . | . . . . Impact . | . . . . Slashing . | . . . . Piercing . | . . . . Sneak Attacks . | . . . . Combat Hostiles . | . . . . Follow-up Attacks . | . . . . Damage Inflicted 916 | 214 488 166 48 Guns 696 | 214 444 . 38 Cannons . | . . . . Explosions 204 | . 44 160 . Melee . | . . . . Ramming 16 | . . 6 10 Kinetic 413 | 76 299 . 38 Thermal 232 | 138 94 . . Explosive 160 | . . 160 . Electromagnetic 95 | . 95 . . Impact . | . . . . Slashing . | . . . . Piercing . | . . . . Highest Corruption . | . . . . Average Corruption . | . . . . Corruption Purged . | . . . . Corruption Blocked . | . . . . Overload Shots . | . . . . Overflow Damage 13 | . . 13 . Projectiles . | . . . . Explosions 13 | . . 13 . Melee . | . . . . Knockbacks . | . . . . Impact . | . . . . Kinetic . | . . . . Secondary . | . . . . Self-Inflicted Damage 127 | . 54 69 4 Shots 4 | . 1 3 . Rammed 2 | . . . 2 Targets Rammed 4 | . . 2 2 Kicked 2 | . . 2 . Crushed . | . . . . Highest Temperature 309 | 90 309 37 . Average Temperature 88 | 39 131 18 . Received Heat Transfer 687 | . 408 195 84 Effects 2 | . 2 . . Interference 2 | . 2 . . Siege Activations . | . . . . Martial Activations . | . . . . Shielding Activations . | . . . . Robots Disrupted . | . . . . Combat Hostiles . | . . . . Robots Corrupted . | . . . . Combat Hostiles . | . . . . Parts Fried . | . . . . Impact Corruptions . | . . . . Robots Melted . | . . . . Combat Hostiles . | . . . . Parts Melted 1 | 1 . . . Heat Transferred 803 | 555 248 . . Parts Sabotaged . | . . . . Parts Stolen . | . . . . Parts Stripped . | . . . . Power Chain Reactions 1 | . 1 . . Alert | -11 -10 -9 -9 ------- Run | Yrd Mat Mat Sto Maximum Alert Level . | . . . . Low Security (%) 100 | 100 100 100 100 Level 1 . | . . . . Level 2 . | . . . . Level 3 . | . . . . Level 4 . | . . . . Level 5 . | . . . . High Security . | . . . . Max Security . | . . . . Peak Influence 60 | 5 50 15 60 Initial 3 | . . 3 . Average 14 | 1 19 1 18 Influence Increases 336 | 15 159 17 145 Destroy 0b10 Robot/C 180 | . 120 . 60 Destroy 0b10 Robot/NC 15 | 15 . . . Destroy Leader 30 | . 20 . 10 Disable Machine 15 | . 15 . . Destroy Structure 21 | . 4 17 . Partial Spotted 15 | . . . 15 Lose Combat Pursuer 60 | . . . 60 Influence Decreases 286 | 15 149 27 95 Entered New Map 7 | . . 7 . Time Decay 205 | 15 100 5 85 Lost Part 74 | . 49 15 10 Squads Dispatched 3 | . . . 3 Investigation 1 | . . . 1 Extermination . | . . . . Reinforcement 2 | . . . 2 Assault . | . . . . Garrison . | . . . . Intercept . | . . . . Searches Triggered . | . . . . Construction Impeded . | . . . . Haulers Reinforced . | . . . . Active Scanning Responses . | . . . . Cargo Convoy Interrupts . | . . . . Stealth | -11 -10 -9 -9 --------- Run | Yrd Mat Mat Sto Distress Signals 5 | . 3 . 2 Communications Jammed . | . . . . Distress Signals . | . . . . Times Spotted 29 | . 8 5 16 Peak Tracking Total 9 | . 5 4 9 Tactical Retreats 2 | . . . 2 Traps | -11 -10 -9 -9 ------- Run | Yrd Mat Mat Sto Traps Triggered 1 | . . . 1 Indirectly . | . . . . Trap Hack Attempts . | . . . . Triggered . | . . . . Disarmed . | . . . . Reprogrammed . | . . . . Reused . | . . . . Traps Extracted . | . . . . Installed . | . . . . Triggered . | . . . . Machines | -11 -10 -9 -9 ---------- Run | Yrd Mat Mat Sto Machines Disabled 1 | . 1 . . Max in Single Turn 1 | . 1 . . Machines Repaired . | . . . . Machines Dismantled . | . . . . Machines Sabotaged . | . . . . Overloaded Fab Kills . | . . . . Hacking | -11 -10 -9 -9 --------- Run | Yrd Mat Mat Sto Machines Accessed 5 | . 1 1 3 Terminals 5 | . 1 1 3 Fabricators . | . . . . Repair Stations . | . . . . Recycling Units . | . . . . Scanalyzers . | . . . . Garrison Access . | . . . . Total Hacks 14 | . 3 3 8 Successful 3 | . 1 1 1 Failed 11 | . 2 2 7 Catastrophic 4 | . . . 4 Database Lockouts . | . . . . Manual 3 | . . . 3 Terminals 14 | . 3 3 8 Fabricators . | . . . . Repair Stations . | . . . . Recycling Units . | . . . . Scanalyzers . | . . . . Garrison Access . | . . . . Terminal Hacks 3 | . 1 1 1 Open Door 1 | . . . 1 Alert Level 1 | . . 1 . Zone Layout 1 | . 1 . . Fabricator Hacks . | . . . . Repair Station Hacks . | . . . . Recycling Unit Hacks . | . . . . Scanalyzer . | . . . . Garrison Access Hacks . | . . . . Unauthorized Hacks . | . . . . Terminals . | . . . . Fabricators . | . . . . Repair Stations . | . . . . Recycling Units . | . . . . Scanalyzers . | . . . . Garrison Access . | . . . . Data Cores Recovered . | . . . . Used . | . . . . Hacking Detections 5 | . 1 1 3 Full Trace Events 2 | . . . 2 Feedback Events . | . . . . Feedback Blocked . | . . . . Robot Schematics Acquired . | . . . . Robots Built . | . . . . Authchips . | . . . . Time . | . . . . Total Robot Build Rating . | . . . . Part Schematics Acquired . | . . . . Parts Built . | . . . . Authchips . | . . . . Time . | . . . . Total Part Build Rating . | . . . . Part Studies Acquired . | . . . . Parts Repaired . | . . . . Time . | . . . . Parts Recycled . | . . . . Recycled Matter . | . . . . Retrieved Matter . | . . . . Retrieved Components . | . . . . Parts Scanalyzed . | . . . . Part Schematics Acquired . | . . . . Parts Damaged . | . . . . Bothacking | -11 -10 -9 -9 ------------ Run | Yrd Mat Mat Sto Used RIF Installer . | . . . . Robots Hacked . | . . . . Non-combat . | . . . . Combat . | . . . . Robot Hacks Applied . | . . . . Relay Couplers Released . | . . . . Fabnet Peak Effective % . | . . . . Robots Rewired . | . . . . Allies Hacked . | . . . . Hacks Repelled . | . . . . Allies | -11 -10 -9 -9 -------- Run | Yrd Mat Mat Sto Total Allies . | . . . . Largest Group . | . . . . Highest-Rated Group . | . . . . Highest-Rated Ally . | . . . . Total Orders . | . . . . Ally Attacks . | . . . . Total Damage . | . . . . Kills . | . . . . Allies Corrupted . | . . . . Allies Melted . | . . . . Intel | -11 -10 -9 -9 ------- Run | Yrd Mat Mat Sto Active Infowar (turns) 34 | . 34 . . Seismic 34 | . 34 . . Robot Analysis Total . | . . . . Derelict Logs Recovered . | . . . . Drone Launches . | . . . . Drone Recoveries . | . . . . Exploration | -11 -10 -9 -9 ------------- Run | Yrd Mat Mat Sto Turns Passed 758 | 147 297 70 244 Spaces Moved 521 | 70 125 50 276 Core 38 | 20 . . 18 Treads 114 | 50 64 . . Legs 162 | . 61 50 51 Wheels . | . . . . Hover . | . . . . Flight 207 | . . . 207 Fastest Speed 40 | 50 120 120 40 Average Speed 91 | 128 140 120 55 Slowest Speed 160 | 160 160 120 120 Overloaded Moves . | . . . . Propulsion Burnouts . | . . . . Robots Hopped 1 | . . . 1 Potential Cave-ins . | . . . . Cave-ins Triggered . | . . . . Exploration Rate (%) 23 | 4 30 7 54 Regions Visited 3 Branch Regions 1 Pre-discovered Areas . | . . . . Known Exits Taken . | . . . . Unknown Exits Taken 3 | 1 1 1 . Scrap Searched . | . . . . Spaces Dug . | . . . . Terrain Destroyed 18 | . 3 15 . Melee . | . . . . Projectile . | . . . . AOE 18 | . 3 15 . Terrain Rammed . | . . . . Walls Destroyed . | . . . . Machines Disabled . | . . . . Actions | -11 -10 -9 -9 --------- Run | Yrd Mat Mat Sto Total 718 | 99 196 57 366 Wait 63 | . 10 . 53 Move 516 | 69 124 49 274 Hop 1 | . . . 1 Pick Up 25 | 9 6 1 9 Fast Attach 2 | 2 . . . Attach 19 | 4 6 1 8 Detach 4 | . . 1 3 Swap 3 | . 2 . 1 Drop 9 | . . . 9 Fire 72 | 15 48 3 6 Melee . | . . . . Ram 2 | . . . 2 Kick 2 | . . 2 . Crush . | . . . . Escape Stasis . | . . . . Rewire . | . . . . Trap . | . . . . Miscellaneous . | . . . . Route ------- -11/Scrapyard -10/Materials -9/Materials -9/Storage History --------- Turn | Location | Event 19 | -11/Scrapyard | Discovered new exit (range 15) 148 | -11/Scrapyard | Entered Materials 310 | -10/Materials | Lost 4 parts (1p1u2w) 324 | -10/Materials | Build established: Mutant 334 | -10/Materials | Core integrity fell below 50% 431 | -10/Materials | Discovered new exit (range 11) 445 | -10/Materials | Entered another Materials area 445 | -9/Materials | Evolved 2 slots: Propulsion x1, Utility x1 466 | -9/Materials | Discovered new exit (range 12) 509 | -9/Materials | Core integrity fell below 50% 515 | -9/Materials | Entered Storage 537 | -9/Storage | Lost 3 parts (1p2w) 712 | -9/Storage | Core integrity fell below 20% 759 | -9/Storage | Destroyed by Y-45 Defender with Beam Rifle Last Messages --------------- 00713_ Triggered EMP Trap. 00713_ A bubble of electromagnetic force engulfs the area. 00713_ EMP Trap short circuited. 00713_ A bubble of electromagnetic force engulfs the area. 00714_ K-01 Serf collects debris. 00742_ Connecting with Door Terminal... >>Open(Door) Sealed Heavy Doors opened. 00748_ ALERT: Suspicious activity at Terminal S006. Dispatching Investigation squad. [Achievement: One Hack Too Far] 00749_ Dropped Imp. Heat Sink. 00750_ Acquired Prototype Ballistic Cannon. 00751_ Identified Mni. Assault Cannon. [Achievement: Risk Taker] 00752_ Dropped Lgt. Assault Rifle. 00759_ Critical hit (Burn: +37). [Achievement: First Step to Greatness] Map ----- +----------------------------------------------------+ | | | | | | | | | | | | | | | | | ?????????????????????????????????????????????????? | | ?????????????????????????????????????????????????? | | ?????????????????????????????????????????????????? | | ?????????????????????????????????????????????????? | | ?????????????????????????????????????????????????? | | ?????????????????????????????????????????????????? | | ?????????????????????????????????????????????????? | | ?????????????????????????????????????????????????? | | ?????????????????????????????????????????????????? | | ?????????????????????????????????????????????????? | | ?????????????????????????????????????????????????? | | ????????????????????##"""#???????????????????????? | | ????????????????????#T #???????????????????????? | | ????????????????????## #???????????###?????????? | | ?????????????????????###+######### #?????????? | | ???????????????????????# #?????????? | | ??????????????########## Y #?????????? | | ??????????##### Y@ #?????????? | | ??????????#[! + ######### ######## #?????????? | | ??????????###T# #???????#+########????#??????????? | | ????????????### #???????# #???????????????? | | ??????????????# #???????# #???????????????? | | ??????????????# #???????# """" #???????????????? | | ??????????????# #???????# "???? #???????????????? | | ??????????????# #???????# "??????#???????????????? | | ??????????????# #####???# ""??????????#??????????? | | ??????????????# # ##??# ""????#??? #??????????? | | ???????######## # ???+ """" #?? #??????????? | | ???????# # # ????# #? ##?????????? | | ???T#### # #???######+#### #?????????? | | ?# # # #???# #?????????? | | ## # # #???# T +?????????? | | #T """ # + #???# #?????????? | | ?# """ # ??# #???######+#### #?????????? | | ?# """ ##+##### ##### #? ##?????????? | | ?? ## / #?? #??????????? | | ???? ## ########+##### #??? #??????????? | | ######+## #?###### #"" #????#??????????? | | + +? #! #"T """"" #???????????????? | | """ # #[ # #"" """"" #???????????????? | | """ # # ! !#/] ### """"" #???????????????? | | """ # +* = # #?# #??????????????? | +----------------------------------------------------+ Best States ------------- Heat Dissipation 28 Energy Generation 10 Energy Capacity 125 Matter Stores 300 Matter Capacity 300 Sight Range 16 Terrain Scan Density 10 Evasion (%) 62 Targeting Accuracy 6 Recoil Reduction 2 Item Schematics ----------------- None Robot Schematics ------------------ None Fabricated ------------ Nothing Repaired ---------- Nothing Studied --------- None Alien Tech Used ----------------- None Achievements -------------- Crack Shot First Step to Greatness Fist Fight For Emergencies Only I Have A Map? One Hack Too Far Organ Harvest Risk Taker There's More Where That Came From Uninvited Guest Challenges ------------ None Game ------ Seed MetafieldScatterBlaster Manual? 0 Play Time 00:18:52 Cumulative 0.2 hours Start 2025.10.22 @ 22:34:52 End 2025.10.22 @ 22:52:31 Sessions 1 Manual Loads 0 Difficulty Rogue Special Mode None Game No. 1 Rogue 1 Adventurer 0 Explorer 0 Win Type - Total 0 Types 0/0/0/0/0/0/0/0/0/0 Lore% 0 Gallery% 1 Achievement% 2 Wizard Run 0 Options --------- Layout 1 ASCII 0 Keyboard 0 Movement Mouse Keybinds 0 Fullscreen 1 Font 24/Smallcaps Map View 50x35 Zoom Use 0% Tactical HUD 1 Map Filters NONE Filters NONE Steam 0 RUN: 906e1eb9-61b4-4533-a96e-a7f44a882073